[Event "*** Titled Tuesday Blitz"]
[Site "Chess.com"]
[Date "2021.03.09"]
[Round "1"]
[White "stoleriu"]
[Black "2Tilted"]
[Result "1-0"]
[WhiteElo "2602"]
[BlackElo "2298"]
[TimeControl "180+1"]
[EndTime "10:09:22 PST"]
[Termination "stoleriu won by checkmate"]

1. e4 {[%clk 0:03:00.9]} 1... c5 {[%clk 0:02:59.4]} 2. Nf3 {[%clk 0:02:59.1]}
2... e6 {[%clk 0:02:59.8]} 3. b3 {[%clk 0:02:56.2]} 3... b6 {[%clk 0:03:00.1]}
4. Bb2 {[%clk 0:02:55.9]} 4... Bb7 {[%clk 0:03:00.5]} 5. d3 {[%clk 0:02:55.9]}
5... d6 {[%clk 0:03:00.8]} 6. g3 {[%clk 0:02:55.9]} 6... Nd7 {[%clk 0:03:01.3]}
7. Bg2 {[%clk 0:02:54.3]} 7... Ngf6 {[%clk 0:03:01.9]} 8. O-O {[%clk 0:02:53.7]}
8... Be7 {[%clk 0:03:02.6]} 9. Nbd2 {[%clk 0:02:48]} 9... O-O {[%clk 0:03:01.7]}
10. Re1 {[%clk 0:02:43.8]} 10... Qc7 {[%clk 0:03:01]} 11. d4 {[%clk 0:02:36]}
11... cxd4 {[%clk 0:03:00.6]} 12. Nxd4 {[%clk 0:02:36.9]} 12... d5 {[%clk
0:02:55.2]} 13. c4 {[%clk 0:01:48.2]} 13... dxe4 {[%clk 0:02:53.7]} 14. Nxe4
{[%clk 0:01:49.1]} 14... Nxe4 {[%clk 0:02:52.9]} 15. Bxe4 {[%clk 0:01:50]} 15...
Bxe4 {[%clk 0:02:52.6]} 16. Rxe4 {[%clk 0:01:50.9]} 16... Nf6 {[%clk 0:02:52]}
17. Re1 {[%clk 0:01:47.5]} 17... Rfd8 {[%clk 0:02:49.7]} 18. Qf3 {[%clk
0:01:46.5]} 18... Bc5 {[%clk 0:02:41.5]} 19. Nb5 {[%clk 0:01:24.3]} 19... Qe7
{[%clk 0:02:37.4]} 20. Rad1 {[%clk 0:01:18.2]} 20... a6 {[%clk 0:02:36]} 21. Nc3
{[%clk 0:01:16.8]} 21... Rxd1 {[%clk 0:02:30.5]} 22. Qxa8+ {[%clk 0:01:10.9]}
22... Rd8 {[%clk 0:02:10.6]} 23. Qxa6 {[%clk 0:01:10.7]} 23... Rd2 {[%clk
0:02:01.3]} 24. Qa8+ {[%clk 0:00:59.2]} 24... Qf8 {[%clk 0:02:00.7]} 25. Qxf8+
{[%clk 0:00:56.6]} 25... Kxf8 {[%clk 0:02:01.2]} 26. Re2 {[%clk 0:00:53.8]}
26... Rxe2 {[%clk 0:02:01.3]} 27. Nxe2 {[%clk 0:00:54.7]} 27... e5 {[%clk
0:01:29.5]} 28. Bxe5 {[%clk 0:00:51.7]} 28... Bxf2+ {[%clk 0:01:29.3]} 29. Kxf2
{[%clk 0:00:52.6]} 29... Ng4+ {[%clk 0:01:29.6]} 30. Kf3 {[%clk 0:00:53.5]}
30... Nxe5+ {[%clk 0:01:30]} 31. Ke4 {[%clk 0:00:54.4]} 31... f6 {[%clk
0:01:27.8]} 32. Nf4 {[%clk 0:00:50.8]} 32... g5 {[%clk 0:01:17]} 33. Nd5 {[%clk
0:00:50.5]} 33... Kf7 {[%clk 0:01:16.5]} 34. Nxb6 {[%clk 0:00:50.5]} 34... Ke6
{[%clk 0:01:15.1]} 35. a4 {[%clk 0:00:50.2]} 35... f5+ {[%clk 0:01:15.3]} 36.
Ke3 {[%clk 0:00:49]} 36... Ng4+ {[%clk 0:01:16]} 37. Kd4 {[%clk 0:00:48.6]}
37... Ne5 {[%clk 0:01:01.5]} 38. b4 {[%clk 0:00:39.6]} 38... f4 {[%clk
0:00:58.1]} 39. gxf4 {[%clk 0:00:38.4]} 39... gxf4 {[%clk 0:00:59]} 40. Ke4
{[%clk 0:00:34.6]} 40... f3 {[%clk 0:00:59.1]} 41. Ke3 {[%clk 0:00:34.9]} 41...
Kf5 {[%clk 0:00:57.5]} 42. a5 {[%clk 0:00:32.4]} 42... f2 {[%clk 0:00:55.6]} 43.
Kxf2 {[%clk 0:00:32.1]} 43... Nd3+ {[%clk 0:00:56.1]} 44. Ke3 {[%clk 0:00:32.2]}
44... Nxb4 {[%clk 0:00:57]} 45. Nd5 {[%clk 0:00:26.4]} 45... Nc6 {[%clk
0:00:49.6]} 46. a6 {[%clk 0:00:25.3]} 46... Ke5 {[%clk 0:00:49.5]} 47. Nb4
{[%clk 0:00:19.5]} 47... Na7 {[%clk 0:00:46.4]} 48. Nd3+ {[%clk 0:00:19.9]}
48... Kd6 {[%clk 0:00:46.5]} 49. Ke4 {[%clk 0:00:18.8]} 49... Kc6 {[%clk
0:00:46.2]} 50. Kf5 {[%clk 0:00:18.1]} 50... Kb6 {[%clk 0:00:46.7]} 51. Kf6
{[%clk 0:00:18.7]} 51... Kxa6 {[%clk 0:00:46.5]} 52. Kg7 {[%clk 0:00:19.3]}
52... Nc8 {[%clk 0:00:45.5]} 53. Kxh7 {[%clk 0:00:18.4]} 53... Nd6 {[%clk
0:00:46]} 54. c5 {[%clk 0:00:18.9]} 54... Ne4 {[%clk 0:00:45.6]} 55. Kg6 {[%clk
0:00:19.2]} 55... Kb5 {[%clk 0:00:46.1]} 56. h4 {[%clk 0:00:19.6]} 56... Kc4
{[%clk 0:00:46.4]} 57. c6 {[%clk 0:00:13.3]} 57... Nd6 {[%clk 0:00:42.7]} 58. h5
{[%clk 0:00:09.7]} 58... Nc8 {[%clk 0:00:37.5]} 59. h6 {[%clk 0:00:10.1]} 59...
Ne7+ {[%clk 0:00:37.7]} 60. Kf7 {[%clk 0:00:07]} 60... Nxc6 {[%clk 0:00:29.3]}
61. h7 {[%clk 0:00:07.4]} 61... Nd8+ {[%clk 0:00:29.8]} 62. Ke8 {[%clk
0:00:05.3]} 62... Nc6 {[%clk 0:00:28.8]} 63. h8=Q {[%clk 0:00:05.6]} 63... Kxd3
{[%clk 0:00:29.7]} 64. Qh7+ {[%clk 0:00:04.6]} 64... Kc4 {[%clk 0:00:30.1]} 65.
Qf7+ {[%clk 0:00:05.1]} 65... Kd4 {[%clk 0:00:30.1]} 66. Qd7+ {[%clk 0:00:05.2]}
66... Kc5 {[%clk 0:00:30.8]} 67. Qf5+ {[%clk 0:00:05.4]} 67... Kc4 {[%clk
0:00:30]} 68. Kd7 {[%clk 0:00:05.3]} 68... Nd4 {[%clk 0:00:30.9]} 69. Qf7+
{[%clk 0:00:05.1]} 69... Kc5 {[%clk 0:00:30.9]} 70. Qe7+ {[%clk 0:00:04.9]}
70... Kc4 {[%clk 0:00:30.9]} 71. Qh4 {[%clk 0:00:05.1]} 71... Kc5 {[%clk
0:00:31.3]} 72. Qg5+ {[%clk 0:00:05.7]} 72... Kc4 {[%clk 0:00:31.6]} 73. Kd6
{[%clk 0:00:06.4]} 73... Nb5+ {[%clk 0:00:32]} 74. Kc6 {[%clk 0:00:07.1]} 74...
Nc3 {[%clk 0:00:32.5]} 75. Qf4+ {[%clk 0:00:06.3]} 75... Kd3 {[%clk 0:00:32.4]}
76. Kc5 {[%clk 0:00:06.6]} 76... Ne4+ {[%clk 0:00:32.8]} 77. Kd5 {[%clk
0:00:06.7]} 77... Nc3+ {[%clk 0:00:33.2]} 78. Ke5 {[%clk 0:00:07.3]} 78... Kc2
{[%clk 0:00:32.3]} 79. Qc4 {[%clk 0:00:07.5]} 79... Kd2 {[%clk 0:00:32.4]} 80.
Kf4 {[%clk 0:00:06.6]} 80... Ne2+ {[%clk 0:00:32.3]} 81. Kf3 {[%clk 0:00:07.1]}
81... Nc3 {[%clk 0:00:32.1]} 82. Qb4 {[%clk 0:00:06.7]} 82... Kd3 {[%clk
0:00:32.4]} 83. Qd6+ {[%clk 0:00:05.7]} 83... Kc4 {[%clk 0:00:32.4]} 84. Ke3
{[%clk 0:00:06.4]} 84... Nd5+ {[%clk 0:00:32.7]} 85. Ke4 {[%clk 0:00:06.4]}
85... Nc3+ {[%clk 0:00:33.3]} 86. Ke5 {[%clk 0:00:07.3]} 86... Nb5 {[%clk
0:00:33.3]} 87. Qc6+ {[%clk 0:00:07.2]} 87... Kb4 {[%clk 0:00:33.7]} 88. Kd5
{[%clk 0:00:07.3]} 88... Nc3+ {[%clk 0:00:34.1]} 89. Kd4 {[%clk 0:00:07.9]}
89... Nb5+ {[%clk 0:00:34.2]} 90. Kd3 {[%clk 0:00:08.5]} 90... Ka5 {[%clk
0:00:33.9]} 91. Kc4 {[%clk 0:00:08.2]} 91... Na3+ {[%clk 0:00:33.3]} 92. Kc5
{[%clk 0:00:08.6]} 92... Nc4 {[%clk 0:00:30.7]} 93. Qb5# {[%clk 0:00:08.6]} 1-0

[Event "*** Titled Tuesday Blitz"]
[Site "Chess.com"]
[Date "2021.03.09"]
[Round "1"]
[White "BashirliSaadat"]
[Black "PotapovaM"]
[Result "0-1"]
[WhiteElo "2170"]
[BlackElo "2521"]
[TimeControl "180+1"]
[EndTime "10:09:34 PST"]
[Termination "PotapovaM won by resignation"]

1. e4 {[%clk 0:02:56]} 1... c5 {[%clk 0:02:59.4]} 2. Nf3 {[%clk 0:02:53]} 2...
d6 {[%clk 0:02:59.8]} 3. Bb5+ {[%clk 0:02:50.2]} 3... Nd7 {[%clk 0:02:58.6]} 4.
O-O {[%clk 0:02:47.8]} 4... a6 {[%clk 0:02:58.6]} 5. Bxd7+ {[%clk 0:02:44]} 5...
Bxd7 {[%clk 0:02:59.5]} 6. c3 {[%clk 0:02:43.3]} 6... Nf6 {[%clk 0:02:54.6]} 7.
Re1 {[%clk 0:02:42.1]} 7... g6 {[%clk 0:02:50.3]} 8. d4 {[%clk 0:02:35.6]} 8...
cxd4 {[%clk 0:02:49.5]} 9. cxd4 {[%clk 0:02:36.5]} 9... Bg7 {[%clk 0:02:48.3]}
10. e5 {[%clk 0:02:34.7]} 10... dxe5 {[%clk 0:02:32.6]} 11. dxe5 {[%clk
0:02:35.6]} 11... Ng4 {[%clk 0:02:24.9]} 12. Bf4 {[%clk 0:02:28.9]} 12... O-O
{[%clk 0:02:21.3]} 13. h3 {[%clk 0:02:23.8]} 13... Nh6 {[%clk 0:02:05]} 14. Nc3
{[%clk 0:02:20]} 14... Bc6 {[%clk 0:02:03.2]} 15. Nd4 {[%clk 0:02:08.3]} 15...
Nf5 {[%clk 0:01:46.8]} 16. Nxc6 {[%clk 0:02:04.8]} 16... bxc6 {[%clk 0:01:46.5]}
17. Qxd8 {[%clk 0:02:00.3]} 17... Rfxd8 {[%clk 0:01:47.4]} 18. Rad1 {[%clk
0:02:00.7]} 18... Nd4 {[%clk 0:01:44.4]} 19. Kf1 {[%clk 0:01:51.2]} 19... Kf8
{[%clk 0:01:38.3]} 20. Re3 {[%clk 0:01:44.7]} 20... Nc2 {[%clk 0:01:33.8]} 21.
Red3 {[%clk 0:01:41.6]} 21... Rxd3 {[%clk 0:01:00.8]} 22. Rxd3 {[%clk
0:01:42.5]} 22... Ke8 {[%clk 0:01:01.4]} 23. Rd2 {[%clk 0:01:26.1]} 23... Nb4
{[%clk 0:00:47.2]} 24. a3 {[%clk 0:01:24]} 24... Nd5 {[%clk 0:00:44.8]} 25. Nxd5
{[%clk 0:01:22.3]} 25... cxd5 {[%clk 0:00:45.7]} 26. Rxd5 {[%clk 0:01:23.2]}
26... Rc8 {[%clk 0:00:45.7]} 27. Ke2 {[%clk 0:01:20.1]} 27... Rc6 {[%clk
0:00:41.4]} 28. Be3 {[%clk 0:01:01]} 28... Re6 {[%clk 0:00:33]} 29. f4 {[%clk
0:01:00]} 29... f6 {[%clk 0:00:32.9]} 30. exf6 {[%clk 0:00:57.2]} 30... Bxf6
{[%clk 0:00:33.3]} 31. Kf3 {[%clk 0:00:56.3]} 31... Bxb2 {[%clk 0:00:32.8]} 32.
a4 {[%clk 0:00:52.2]} 32... Kf7 {[%clk 0:00:28.9]} 33. g4 {[%clk 0:00:46.8]}
33... Rc6 {[%clk 0:00:28.4]} 34. f5 {[%clk 0:00:43.1]} 34... Rc4 {[%clk
0:00:27.8]} 35. fxg6+ {[%clk 0:00:42.1]} 35... hxg6 {[%clk 0:00:28.7]} 36. Ra5
{[%clk 0:00:39.5]} 36... Rc3 {[%clk 0:00:24.6]} 37. Kf2 {[%clk 0:00:33.7]} 37...
Rc2+ {[%clk 0:00:23.3]} 38. Kf3 {[%clk 0:00:30.7]} 38... Rc3 {[%clk 0:00:23.1]}
39. Kf2 {[%clk 0:00:30]} 39... Rc6 {[%clk 0:00:23]} 40. g5 {[%clk 0:00:27.9]}
40... Re6 {[%clk 0:00:21.2]} 41. Rd5 {[%clk 0:00:25.4]} 41... Bc3 {[%clk
0:00:19.2]} 42. Rd3 {[%clk 0:00:24.5]} 42... Bb4 {[%clk 0:00:18.4]} 43. Rb3
{[%clk 0:00:24.4]} 43... a5 {[%clk 0:00:18.6]} 44. Rd3 {[%clk 0:00:19.2]} 44...
Rc6 {[%clk 0:00:18.7]} 45. Rd4 {[%clk 0:00:18]} 45... Rc2+ {[%clk 0:00:18.2]}
46. Kf3 {[%clk 0:00:17.1]} 46... Ra2 {[%clk 0:00:18.4]} 47. Rf4+ {[%clk
0:00:14.8]} 47... Ke8 {[%clk 0:00:18.7]} 48. Rh4 {[%clk 0:00:11.9]} 48... Rxa4
{[%clk 0:00:18]} 49. Rh8+ {[%clk 0:00:11.5]} 49... Kd7 {[%clk 0:00:14.9]} 50.
Rg8 {[%clk 0:00:11]} 50... Ra3 {[%clk 0:00:15.2]} 51. Kf2 {[%clk 0:00:09.5]}
51... Ra2+ {[%clk 0:00:14.8]} 52. Kf3 {[%clk 0:00:08.6]} 52... Rh2 {[%clk
0:00:14.8]} 53. Kg3 {[%clk 0:00:07.1]} 53... Bd6+ {[%clk 0:00:14.6]} 54. Kg4
{[%clk 0:00:07.4]} 54... Rg2+ {[%clk 0:00:14.4]} 55. Kf3 {[%clk 0:00:07.4]}
55... Rg3+ {[%clk 0:00:14.3]} 56. Ke4 {[%clk 0:00:07.8]} 56... Rxh3 {[%clk
0:00:13]} 57. Rxg6 {[%clk 0:00:08.2]} 57... a4 {[%clk 0:00:11.8]} 58. Rh6 {[%clk
0:00:07.5]} 58... Rg3 {[%clk 0:00:10.9]} 59. g6 {[%clk 0:00:06.5]} 59... a3
{[%clk 0:00:11]} 60. Rh1 {[%clk 0:00:04.1]} 60... Rxg6 {[%clk 0:00:10.3]} 61.
Ra1 {[%clk 0:00:04.6]} 61... Re6+ {[%clk 0:00:10.8]} 62. Kd3 {[%clk 0:00:04.4]}
62... Re5 {[%clk 0:00:11.1]} 63. Bf4 {[%clk 0:00:03.8]} 63... Rd5+ {[%clk
0:00:11.1]} 64. Ke4 {[%clk 0:00:03.5]} 64... Ra5 {[%clk 0:00:10.7]} 65. Bxd6
{[%clk 0:00:03.4]} 65... Kxd6 {[%clk 0:00:11.2]} 66. Kd4 {[%clk 0:00:04.1]}
66... Ra4+ {[%clk 0:00:10.8]} 67. Kc3 {[%clk 0:00:04.2]} 67... Kd5 {[%clk
0:00:11]} 68. Rd1+ {[%clk 0:00:04]} 68... Ke6 {[%clk 0:00:10.3]} 69. Re1+ {[%clk
0:00:04.4]} 69... Kf7 {[%clk 0:00:10.6]} 70. Ra1 {[%clk 0:00:04.9]} 70... e5
{[%clk 0:00:09.9]} 71. Kd3 {[%clk 0:00:05.3]} 71... Ke6 {[%clk 0:00:09.6]} 72.
Ke3 {[%clk 0:00:05.4]} 72... Kd5 {[%clk 0:00:09.7]} 73. Kd3 {[%clk 0:00:04.9]}
73... e4+ {[%clk 0:00:09.1]} 74. Ke3 {[%clk 0:00:05]} 74... Ke5 {[%clk
0:00:09.6]} 75. Rb1 {[%clk 0:00:04.6]} 75... a2 {[%clk 0:00:09.3]} 76. Ra1
{[%clk 0:00:05.2]} 76... Ra3+ {[%clk 0:00:08.9]} 77. Kd2 {[%clk 0:00:05.4]}
77... Kd4 {[%clk 0:00:09.8]} 78. Ke2 {[%clk 0:00:05.9]} 78... e3 {[%clk
0:00:08.8]} 79. Ke1 {[%clk 0:00:06.5]} 79... Kd3 {[%clk 0:00:08.9]} 80. Kd1
{[%clk 0:00:07]} 80... Ra8 {[%clk 0:00:08.1]} 81. Ke1 {[%clk 0:00:06.7]} 81...
Ra7 {[%clk 0:00:08.5]} 82. Kd1 {[%clk 0:00:06.7]} 82... Rh7 {[%clk 0:00:08.7]}
83. Kc1 {[%clk 0:00:07.3]} 83... Rh1+ {[%clk 0:00:08.8]} 84. Kb2 {[%clk
0:00:07.7]} 84... Rxa1 {[%clk 0:00:09.7]} 85. Kxa1 {[%clk 0:00:08.6]} 85... e2
{[%clk 0:00:10.2]} 0-1

[Event "*** Titled Tuesday Blitz"]
[Site "Chess.com"]
[Date "2021.03.09"]
[Round "1"]
[White "DenLaz"]
[Black "LileKoridze"]
[Result "1-0"]
[WhiteElo "2839"]
[BlackElo "2442"]
[TimeControl "180+1"]
[EndTime "10:10:34 PST"]
[Termination "DenLaz won by checkmate"]

1. d4 {[%clk 0:02:59.9]} 1... Nf6 {[%clk 0:02:58.9]} 2. c4 {[%clk 0:03:00.2]}
2... e6 {[%clk 0:02:59.2]} 3. Nf3 {[%clk 0:03:00.2]} 3... d5 {[%clk 0:02:59.5]}
4. Nc3 {[%clk 0:02:59.8]} 4... Bb4 {[%clk 0:02:59.7]} 5. Bg5 {[%clk 0:02:58.1]}
5... O-O {[%clk 0:02:59.4]} 6. e3 {[%clk 0:02:57.8]} 6... h6 {[%clk 0:02:50.3]}
7. Bxf6 {[%clk 0:02:56.2]} 7... Qxf6 {[%clk 0:02:47.7]} 8. Qb3 {[%clk
0:02:55.9]} 8... Bxc3+ {[%clk 0:02:47.1]} 9. Qxc3 {[%clk 0:02:45.6]} 9... dxc4
{[%clk 0:02:42.6]} 10. Qxc4 {[%clk 0:02:31.8]} 10... c6 {[%clk 0:02:40.8]} 11.
Be2 {[%clk 0:02:21.8]} 11... Nd7 {[%clk 0:02:40.4]} 12. Qc3 {[%clk 0:02:21.8]}
12... c5 {[%clk 0:02:37.9]} 13. O-O {[%clk 0:02:20.8]} 13... b6 {[%clk
0:02:35.1]} 14. Bb5 {[%clk 0:02:14.7]} 14... cxd4 {[%clk 0:02:31.9]} 15. Qxd4
{[%clk 0:02:11.2]} 15... Qxd4 {[%clk 0:02:26.8]} 16. Nxd4 {[%clk 0:02:12.1]}
16... Nc5 {[%clk 0:02:26.2]} 17. b4 {[%clk 0:02:10]} 17... Nd7 {[%clk
0:02:21.6]} 18. Rfc1 {[%clk 0:02:01.9]} 18... Nf6 {[%clk 0:02:20.9]} 19. Bc6
{[%clk 0:01:56.9]} 19... Rb8 {[%clk 0:02:20.8]} 20. a4 {[%clk 0:01:56.8]} 20...
Bb7 {[%clk 0:02:12.5]} 21. Kf1 {[%clk 0:01:54.6]} 21... Nd5 {[%clk 0:02:06.6]}
22. b5 {[%clk 0:01:46.9]} 22... g6 {[%clk 0:01:58.4]} 23. Ke2 {[%clk 0:01:45.2]}
23... Kg7 {[%clk 0:01:57.5]} 24. g3 {[%clk 0:01:42.5]} 24... Rfc8 {[%clk
0:01:51.2]} 25. Bxb7 {[%clk 0:01:39.8]} 25... Rxc1 {[%clk 0:01:47.4]} 26. Rxc1
{[%clk 0:01:40.7]} 26... Rxb7 {[%clk 0:01:48]} 27. e4 {[%clk 0:01:39.4]} 27...
Nf6 {[%clk 0:01:41.6]} 28. f3 {[%clk 0:01:35.2]} 28... Rd7 {[%clk 0:01:40.3]}
29. Ke3 {[%clk 0:01:34.6]} 29... Ne8 {[%clk 0:01:39]} 30. Nc6 {[%clk 0:01:28.1]}
30... Rc7 {[%clk 0:01:36]} 31. Rd1 {[%clk 0:01:26.3]} 31... Nf6 {[%clk
0:01:27.6]} 32. Rd8 {[%clk 0:01:24.4]} 32... Nd7 {[%clk 0:01:26.6]} 33. Ra8
{[%clk 0:01:10.5]} 33... Nc5 {[%clk 0:01:26.6]} 34. Rxa7 {[%clk 0:01:11]} 34...
Rxa7 {[%clk 0:01:25.7]} 35. Nxa7 {[%clk 0:01:11.9]} 35... Nxa4 {[%clk
0:01:26.4]} 36. Kd4 {[%clk 0:01:12.3]} 36... Kf6 {[%clk 0:01:22.1]} 37. Kc4
{[%clk 0:01:10.2]} 37... Nb2+ {[%clk 0:01:13.9]} 38. Kc3 {[%clk 0:01:05.9]}
38... Na4+ {[%clk 0:01:05.1]} 39. Kb4 {[%clk 0:01:02.7]} 39... Nc5 {[%clk
0:01:05.5]} 40. Nc8 {[%clk 0:01:01.6]} 40... Nd7 {[%clk 0:01:05.6]} 41. Kc4
{[%clk 0:00:57.2]} 41... Ke5 {[%clk 0:01:00.3]} 42. Kd3 {[%clk 0:00:56.4]} 42...
g5 {[%clk 0:00:58.7]} 43. Ke3 {[%clk 0:00:55.2]} 43... f5 {[%clk 0:00:55.8]} 44.
f4+ {[%clk 0:00:54.5]} 44... gxf4+ {[%clk 0:00:56]} 45. gxf4+ {[%clk 0:00:55.4]}
45... Kf6 {[%clk 0:00:56.4]} 46. e5+ {[%clk 0:00:45.1]} 46... Kf7 {[%clk
0:00:56.1]} 47. Kf3 {[%clk 0:00:44.5]} 47... Kg6 {[%clk 0:00:51.7]} 48. Kg3
{[%clk 0:00:43.7]} 48... Kg7 {[%clk 0:00:14.6]} 49. Kh4 {[%clk 0:00:41.2]} 49...
Kg6 {[%clk 0:00:13.4]} 50. Nd6 {[%clk 0:00:39.8]} 50... Nc5 {[%clk 0:00:12.1]}
51. Nc4 {[%clk 0:00:39.9]} 51... Nd7 {[%clk 0:00:11.3]} 52. Kg3 {[%clk
0:00:33.9]} 52... Kf7 {[%clk 0:00:09.3]} 53. h3 {[%clk 0:00:31.5]} 53... Kg7
{[%clk 0:00:08]} 54. Kf3 {[%clk 0:00:30.2]} 54... Kf7 {[%clk 0:00:07.7]} 55. Ke3
{[%clk 0:00:30.3]} 55... Kg7 {[%clk 0:00:07.8]} 56. Kf2 {[%clk 0:00:29.9]} 56...
Kf7 {[%clk 0:00:08.1]} 57. Kg2 {[%clk 0:00:30.3]} 57... Kg7 {[%clk 0:00:08.5]}
58. Kg3 {[%clk 0:00:31]} 58... Kf7 {[%clk 0:00:08.5]} 59. Kh4 {[%clk 0:00:31.2]}
59... Kg6 {[%clk 0:00:09.2]} 60. Kg3 {[%clk 0:00:24.1]} 60... Kf7 {[%clk
0:00:08.5]} 61. Kf3 {[%clk 0:00:24.6]} 61... Kg7 {[%clk 0:00:08.2]} 62. Ne3
{[%clk 0:00:25.2]} 62... Nc5 {[%clk 0:00:06.2]} 63. Nc2 {[%clk 0:00:23.7]} 63...
Nd7 {[%clk 0:00:03.5]} 64. Nd4 {[%clk 0:00:24]} 64... Nc5 {[%clk 0:00:03.1]} 65.
Kg3 {[%clk 0:00:24.4]} 65... Kf7 {[%clk 0:00:03.1]} 66. Kh4 {[%clk 0:00:22.2]}
66... Kg6 {[%clk 0:00:03.6]} 67. Kg3 {[%clk 0:00:21.8]} 67... Kf7 {[%clk
0:00:03.9]} 68. Kf3 {[%clk 0:00:22]} 68... Kg6 {[%clk 0:00:03.9]} 69. Ne2 {[%clk
0:00:19.3]} 69... Kf7 {[%clk 0:00:03.8]} 70. Ke3 {[%clk 0:00:19]} 70... Kg6
{[%clk 0:00:03.8]} 71. Ng3 {[%clk 0:00:19.4]} 71... Kf7 {[%clk 0:00:03.8]} 72.
Kd4 {[%clk 0:00:19.2]} 72... Nb3+ {[%clk 0:00:02.2]} 73. Kc3 {[%clk 0:00:18.5]}
73... Nc5 {[%clk 0:00:03.1]} 74. h4 {[%clk 0:00:18.5]} 74... Kg6 {[%clk
0:00:02.8]} 75. h5+ {[%clk 0:00:18.7]} 75... Kf7 {[%clk 0:00:03.2]} 76. Nf1
{[%clk 0:00:17.3]} 76... Ne4+ {[%clk 0:00:03.1]} 77. Kd4 {[%clk 0:00:17]} 77...
Nc5 {[%clk 0:00:03.5]} 78. Ne3 {[%clk 0:00:17.4]} 78... Nb3+ {[%clk 0:00:03.5]}
79. Kc3 {[%clk 0:00:16.5]} 79... Nc5 {[%clk 0:00:04.4]} 80. Nc4 {[%clk
0:00:17.1]} 80... Nd7 {[%clk 0:00:03.3]} 81. Kd4 {[%clk 0:00:17.7]} 81... Ke7
{[%clk 0:00:03.7]} 82. Nd6 {[%clk 0:00:13.9]} 82... Nf8 {[%clk 0:00:03.8]} 83.
Nc8+ {[%clk 0:00:14.1]} 83... Kd8 {[%clk 0:00:03.5]} 84. Nxb6 {[%clk 0:00:15]}
84... Kc7 {[%clk 0:00:04.4]} 85. Nc4 {[%clk 0:00:14.4]} 85... Nd7 {[%clk
0:00:03.8]} 86. Nd6 {[%clk 0:00:15]} 86... Nb6 {[%clk 0:00:04]} 87. Nf7 {[%clk
0:00:15.3]} 87... Nd5 {[%clk 0:00:04.3]} 88. Nxh6 {[%clk 0:00:05.6]} 88... Nxf4
{[%clk 0:00:04.6]} 89. Nxf5 {[%clk 0:00:06.3]} 89... exf5 {[%clk 0:00:03.5]} 90.
h6 {[%clk 0:00:06.6]} 90... Ng6 {[%clk 0:00:04]} 91. h7 {[%clk 0:00:06]} 91...
Nh8 {[%clk 0:00:03.7]} 92. e6 {[%clk 0:00:06.3]} 92... Ng6 {[%clk 0:00:04.1]}
93. b6+ {[%clk 0:00:04.8]} 93... Kd6 {[%clk 0:00:02.1]} 94. b7 {[%clk
0:00:04.7]} 94... Kc7 {[%clk 0:00:02.5]} 95. e7 {[%clk 0:00:05.2]} 95... Nxe7
{[%clk 0:00:02]} 96. h8=Q {[%clk 0:00:05.7]} 96... Nc6+ {[%clk 0:00:02.9]} 97.
Ke3 {[%clk 0:00:06.1]} 97... Kxb7 {[%clk 0:00:03.8]} 98. Kf4 {[%clk 0:00:06.7]}
98... Kb6 {[%clk 0:00:04.5]} 99. Qb2+ {[%clk 0:00:07.1]} 99... Kc7 {[%clk
0:00:04.6]} 100. Kxf5 {[%clk 0:00:07.7]} 100... Kd6 {[%clk 0:00:05.3]} 101. Ke4
{[%clk 0:00:07.8]} 101... Kc5 {[%clk 0:00:05.5]} 102. Qc3+ {[%clk 0:00:07.9]}
102... Kd6 {[%clk 0:00:06.1]} 103. Qd2+ {[%clk 0:00:07.6]} 103... Kc7 {[%clk
0:00:06]} 104. Qd5 {[%clk 0:00:07.4]} 104... Kb6 {[%clk 0:00:05.6]} 105. Qd6
{[%clk 0:00:07.9]} 105... Kb7 {[%clk 0:00:05.8]} 106. Kd5 {[%clk 0:00:06.4]}
106... Nb8 {[%clk 0:00:06]} 107. Kc5 {[%clk 0:00:05.9]} 107... Na6+ {[%clk
0:00:06.2]} 108. Kb5 {[%clk 0:00:06]} 108... Nc7+ {[%clk 0:00:06.8]} 109. Ka5
{[%clk 0:00:06.7]} 109... Kc8 {[%clk 0:00:05.9]} 110. Kb6 {[%clk 0:00:05.3]}
110... Na8+ {[%clk 0:00:06.3]} 111. Kc6 {[%clk 0:00:05.6]} 111... Nb6 {[%clk
0:00:06.5]} 112. Qc7# {[%clk 0:00:05.7]} 1-0